fUST/lending_fUST_20250103
["ID","MTS","AMOUNT","RATE_DAILY","PERIOD"]
[347549283,1735913449238,-500.0,0.00019452,3]
[347549285,1735913449249,-500.0,0.00019452,3]
[347549287,1735913449259,-500.0,0.00019452,3]
[347549289,1735913449268,-500.0,0.00019452,3]
[347549291,1735913449280,-1000.0,0.00019452,3]
[347549293,1735913449290,-498.03574134,0.00019452,3]
[347549295,1735913449300,-500.0,0.00019452,3]
[347549297,1735913449311,-500.0,0.00019452,3]
[347549299,1735913449322,-500.0,0.00019452,3]
[347549324,1735913449556,-500.0,0.00019452,3]
[347549327,1735913449573,-500.0,0.00019452,3]
[347549329,1735913449583,-286.17384162,0.00019452,3]
[347549331,1735913449593,-622.94805382,0.00019452,3]
[347549333,1735913449602,-500.0,0.00019452,3]
[347549335,1735913449612,-633.89895988,0.00019452,3]
[347549337,1735913449622,-500.0,0.00019452,3]
[347549339,1735913449631,-151.0,0.00019452,2]
[347549341,1735913449641,-151.0,0.00019452,2]
[347549343,1735913449651,-348.97649339,0.00019452,3]
[347549345,1735913449661,-500.0,0.00019452,3]
[347549347,1735913449670,-500.0,0.00019452,3]
[347549349,1735913449680,-503.20831979,0.00019452,3]
[347549351,1735913449690,-500.0,0.00019452,3]
[347549353,1735913449700,-500.0,0.00019452,3]
[347549355,1735913449710,-500.0,0.00019452,3]
[347549357,1735913449720,-500.0,0.00019452,3]
[347549359,1735913449729,-500.0,0.00019452,3]
[347549361,1735913449739,-500.0,0.00019452,3]
[347549363,1735913449748,-500.0,0.00019452,3]
[347549365,1735913449757,-500.0,0.00019452,3]
[347549367,1735913449766,-500.0,0.00019452,3]
[347549369,1735913449777,-500.0,0.00019452,3]
[347549371,1735913449786,-500.0,0.00019452,3]
[347549373,1735913449795,-500.0,0.00019452,3]
[347549375,1735913449805,-500.0,0.00019452,3]
[347549377,1735913449814,-500.0,0.00019452,3]
[347549379,1735913449824,-513.33,0.00019452,3]
[347549381,1735913449833,-500.0,0.00019452,3]
[347549383,1735913449843,-500.0,0.00019452,3]
[347549385,1735913449852,-500.0,0.00019452,3]
[347549387,1735913449861,-778.46,0.00019452,3]
[347549389,1735913449871,-500.0,0.00019452,3]
[347549391,1735913449880,-500.0,0.00019452,3]
[347549393,1735913449889,-500.0,0.00019452,3]
[347549395,1735913449899,-500.0,0.00019452,3]
[347549397,1735913449909,-500.0,0.00019452,3]
[347549399,1735913449921,-500.0,0.00019452,3]
[347549401,1735913449931,-254.94367226,0.00019452,3]
[347549404,1735913449940,-500.0,0.00019452,3]
[347549406,1735913449950,-507.12143138,0.00019452,3]
[347549408,1735913449959,-500.0,0.00019452,3]
[347549410,1735913449969,-589.20054992,0.00019452,3]
[347549412,1735913449978,-500.0,0.00019452,3]
[347549414,1735913449987,-500.0,0.00019452,3]
[347549416,1735913449997,-152.76632429,0.00019452,3]
[347549418,1735913450006,-500.0,0.00019452,3]
[347549420,1735913450015,-507.99,0.00019452,3]
[347549422,1735913450027,-565.96,0.00019452,3]
[347549424,1735913450037,-1279.26,0.00019452,3]
[347549426,1735913450046,-500.0,0.00019452,3]
[347549428,1735913450055,-1219.16,0.00019452,3]
[347549430,1735913450064,-501.47561163,0.00019452,3]
[347549432,1735913450073,-500.0,0.00019452,3]
[347549434,1735913450082,-500.0,0.00019452,3]
[347549436,1735913450091,-551.83838356,0.00019452,3]
[347549438,1735913450100,-500.0,0.00019452,3]
[347549440,1735913450110,-500.0,0.00019452,3]
[347549442,1735913450119,-500.0,0.00019452,3]
[347549444,1735913450129,-306.10068494,0.00019452,3]
[347549446,1735913450139,-500.0,0.00019452,3]
[347549448,1735913450148,-500.0,0.00019452,3]
[347549450,1735913450157,-151.0,0.00019452,2]
[347549452,1735913450166,-151.0,0.00019452,2]
[347549454,1735913450175,-500.0,0.00019452,3]
[347549456,1735913450185,-157.71630223,0.00019452,3]
[347549458,1735913450194,-531.63,0.00019452,3]
[347549459,1735913450203,-500.0,0.00019452,3]
[347549462,1735913450213,-1107.66,0.00019452,3]
[347549464,1735913450222,-500.0,0.00019452,3]
[347549466,1735913450231,-635.01,0.00019452,3]
[347549468,1735913450240,-500.0,0.00019452,3]
[347549469,1735913450249,-500.0,0.00019452,3]
[347549471,1735913450258,-500.0,0.00019452,3]
[347549473,1735913450268,-500.0,0.00019452,3]
[347549476,1735913450281,-500.0,0.00019452,3]
[347549478,1735913450290,-500.0,0.00019452,3]
[347549480,1735913450299,-504.24889037,0.00019452,3]
[347549481,1735913450308,-500.0,0.00019452,3]
[347549484,1735913450322,-500.0,0.00019452,3]
[347549486,1735913450332,-500.0,0.00019452,3]
[347549488,1735913450341,-500.0,0.00019452,3]
[347549490,1735913450350,-500.0,0.00019452,3]
[347549492,1735913450359,-500.0,0.00019452,3]
[347549494,1735913450371,-500.0,0.00019452,3]
[347549495,1735913450380,-672.33,0.00019452,3]
[347549498,1735913450390,-500.0,0.00019452,3]
[347549499,1735913450402,-502.37379421,0.00019452,3]
[347549501,1735913450412,-500.0,0.00019452,3]
[347549503,1735913450421,-363.68247921,0.00019452,3]
[347549505,1735913450431,-569.28,0.00019452,3]
[347549507,1735913450440,-500.0,0.00019452,3]
[347549509,1735913450449,-500.0,0.00019452,3]
[347549512,1735913450459,-500.0,0.00019452,3]
[347549514,1735913450468,-500.0,0.00019452,3]
[347549516,1735913450477,-500.0,0.00019452,3]
[347549518,1735913450486,-500.0,0.00019452,3]
[347549519,1735913450495,-500.0,0.00019452,3]
[347549522,1735913450504,-500.0,0.00019452,3]
[347549524,1735913450514,-500.0,0.00019452,3]
[347549525,1735913450525,-500.0,0.00019452,3]
[347549527,1735913450534,-500.0,0.00019452,3]
[347549529,1735913450544,-668.78,0.00019452,3]
[347549531,1735913450553,-500.0,0.00019452,3]
[347549534,1735913450562,-1020.303374,0.00019452,2]
[347549536,1735913450572,-1020.303374,0.00019452,2]
[347549538,1735913450581,-500.0,0.00019452,3]
[347549540,1735913450590,-291.92406858,0.00019452,3]
[347549542,1735913450599,-500.0,0.00019452,3]
[347549544,1735913450609,-1020.303374,0.00019452,2]
[347549546,1735913450618,-1020.303374,0.00019452,2]
[347549548,1735913450627,-615.57795334,0.00019452,3]
[347549549,1735913450636,-500.0,0.00019452,3]
[347549551,1735913450645,-500.0,0.00019452,3]
[347549553,1735913450655,-500.0,0.00019452,3]
[347549555,1735913450664,-500.0,0.00019452,3]
[347549558,1735913450673,-500.0,0.00019452,3]
[347549560,1735913450682,-500.0,0.00019452,3]
[347549562,1735913450692,-1719.28,0.00019452,3]
[347549564,1735913450701,-500.0,0.00019452,3]
[347549566,1735913450710,-151.0,0.00019452,2]
[347549568,1735913450719,-500.0,0.00019452,3]
[347549570,1735913450728,-234.660956,0.00019452,2]
[347549572,1735913450737,-638.94,0.00019452,2]
[347549574,1735913450746,-151.0,0.00019452,2]
[347549576,1735913450757,-151.0,0.00019452,2]
[347549578,1735913450767,-151.0,0.00019452,2]
[347549580,1735913450778,-500.0,0.00019452,3]
[347549582,1735913450787,-500.0,0.00019452,3]
[347549584,1735913450796,-500.0,0.00019452,3]
[347549586,1735913450805,-2826.44,0.00019452,3]
[347549588,1735913450814,-607.69,0.00019452,3]
[347549590,1735913450824,-500.0,0.00019452,3]
[347549592,1735913450833,-500.0,0.00019452,3]
[347549594,1735913450842,-500.0,0.00019452,3]
[347549596,1735913450851,-500.0,0.00019452,3]
[347549598,1735913450860,-500.0,0.00019452,3]
[347549600,1735913450870,-500.0,0.00019452,3]
[347549602,1735913450879,-10551.44,0.00019452,3]
[347549604,1735913450888,-500.0,0.00019452,3]
[347549606,1735913450897,-500.0,0.00019452,3]
[347549608,1735913450906,-500.0,0.00019452,3]
[347549610,1735913450915,-517.69,0.00019452,3]
[347549612,1735913450926,-500.0,0.00019452,3]
[347549614,1735913450936,-500.0,0.00019452,3]
[347549616,1735913450945,-500.0,0.00019452,3]
[347549618,1735913450954,-603.52,0.00019452,3]
[347549620,1735913450964,-500.0,0.00019452,3]
[347549622,1735913450973,-500.0,0.00019452,3]
[347549624,1735913450982,-500.0,0.00019452,3]
[347549626,1735913450991,-500.0,0.00019452,3]
[347549628,1735913451000,-169.53224849,0.00019452,3]
[347549630,1735913451009,-500.0,0.00019452,3]
[347549632,1735913451018,-633.88213205,0.00019452,3]
[347549634,1735913451030,-500.0,0.00019452,3]
[347549636,1735913451039,-8319.05,0.00019452,3]
[347549638,1735913451048,-500.0,0.00019452,3]
[347549640,1735913451058,-500.0,0.00019452,3]
[347549642,1735913451067,-500.0,0.00019452,3]
[347549644,1735913451076,-500.0,0.00019452,3]
[347549646,1735913451085,-952.72,0.00019452,3]
[347549648,1735913451095,-500.0,0.00019452,3]
[347549650,1735913451103,-500.0,0.00019452,3]
[347549652,1735913451113,-500.0,0.00019452,3]
[347549654,1735913451122,-1380.85,0.00019452,3]
[347549656,1735913451132,-785.81,0.00019452,3]
[347549658,1735913451142,-500.0,0.00019452,3]
[347549660,1735913451151,-1146.15,0.00019452,3]
[347549663,1735913451160,-606.8,0.00019452,3]
[347549664,1735913451170,-500.0,0.00019452,3]
[347549667,1735913451179,-500.0,0.00019452,3]
[347549669,1735913451188,-500.0,0.00019452,3]
[347549670,1735913451197,-500.0,0.00019452,3]
[347549672,1735913451207,-500.0,0.00019452,3]
[347549674,1735913451216,-500.0,0.00019452,3]
[347549677,1735913451228,-500.0,0.00019452,3]
[347549679,1735913451237,-500.0,0.00019452,3]
[347549681,1735913451246,-500.0,0.00019452,3]
[347549683,1735913451255,-500.0,0.00019452,3]
[347549684,1735913451264,-1531.44,0.00019452,3]
[347549687,1735913451275,-500.0,0.00019452,3]
[347549689,1735913451285,-894.3,0.00019452,3]
[347549691,1735913451294,-500.0,0.00019452,3]
[347549693,1735913451303,-870.61,0.00019452,3]
[347549695,1735913451313,-500.0,0.00019452,3]
[347549697,1735913451326,-2704.78,0.00019452,3]
[347549699,1735913451334,-500.0,0.00019452,3]
[347549701,1735913451343,-501.80460143,0.00019452,3]
[347549703,1735913451352,-500.0,0.00019452,3]
[347549705,1735913451363,-287.12661863,0.00019452,3]
[347549707,1735913451373,-500.0,0.00019452,3]
[347549709,1735913451382,-522.93,0.00019452,3]
[347549711,1735913451392,-3848.23,0.00019452,3]
[347549713,1735913451401,-500.0,0.00019452,3]
[347549715,1735913451410,-500.0,0.00019452,3]
[347549717,1735913451419,-425.22171654,0.00019452,3]
[347549719,1735913451428,-506.13210555,0.00019452,3]
[347549721,1735913451437,-500.0,0.00019452,3]
[347549723,1735913451446,-500.0,0.00019452,3]
[347549725,1735913451455,-500.0,0.00019452,3]
[347549727,1735913451464,-835.92,0.00019452,3]
[347549729,1735913451474,-500.0,0.00019452,3]
[347549731,1735913451483,-519.61,0.00019452,3]
[347549733,1735913451492,-500.0,0.00019452,3]
[347549735,1735913451501,-500.0,0.00019452,3]
[347549737,1735913451510,-500.0,0.00019452,3]
[347549739,1735913451521,-500.0,0.00019452,3]
[347549741,1735913451533,-500.0,0.00019452,3]
[347549743,1735913451542,-4783.66,0.00019452,3]
[347549745,1735913451551,-500.0,0.00019452,3]
[347549747,1735913451560,-500.0,0.00019452,3]
[347549749,1735913451570,-500.0,0.00019452,3]
[347549751,1735913451579,-500.0,0.00019452,3]
[347549753,1735913451588,-1317.16,0.00019452,3]
[347549755,1735913451597,-500.0,0.00019452,3]
[347549757,1735913451606,-35934.75,0.00019452,3]
[347549759,1735913451616,-500.0,0.00019452,3]
[347549761,1735913451625,-500.0,0.00019452,3]
[347549763,1735913451635,-276.55766638,0.00019452,3]
[347549765,1735913451645,-1601.29,0.00019452,3]
[347549767,1735913451654,-500.0,0.00019452,3]
[347549769,1735913451663,-500.0,0.00019452,3]
[347549771,1735913451672,-500.0,0.00019452,3]
[347549773,1735913451681,-500.0,0.00019452,3]
[347549775,1735913451691,-500.0,0.00019452,3]
[347549777,1735913451701,-500.0,0.00019452,3]
[347549780,1735913451710,-1712.54,0.00019452,3]
[347549781,1735913451719,-500.0,0.00019452,3]
[347549783,1735913451729,-500.0,0.00019452,3]
[347549785,1735913451738,-1046.18,0.00019452,3]
[347549788,1735913451747,-500.0,0.00019452,3]
[347549790,1735913451756,-1446.29,0.00019452,3]
[347549792,1735913451766,-500.0,0.00019452,3]
[347549794,1735913451777,-500.0,0.00019452,3]
[347549795,1735913451785,-504.20635578,0.00019452,3]
[347549797,1735913451794,-500.0,0.00019452,3]
[347549799,1735913451804,-1106.52,0.00019452,3]
[347549802,1735913451813,-500.0,0.00019452,3]
[347549803,1735913451822,-502.87001527,0.00019452,3]
[347549805,1735913451831,-500.0,0.00019452,3]
[347549807,1735913451840,-500.0,0.00019452,3]
[347549809,1735913451849,-500.0,0.00019452,3]
[347549811,1735913451859,-500.0,0.00019452,3]
[347549813,1735913451868,-500.0,0.00019452,3]
[347549816,1735913451877,-5179.24,0.00019452,3]
[347549818,1735913451886,-500.0,0.00019452,3]
[347549820,1735913451895,-1978.76,0.00019452,2]
[347549822,1735913451905,-500.0,0.00019452,3]
[347549824,1735913451914,-151.0,0.00019452,2]
[347549826,1735913451923,-500.0,0.00019452,3]
[347549827,1735913451932,-151.0,0.00019452,2]
[347549830,1735913451941,-151.0,0.00019452,2]
[347549832,1735913451950,-500.0,0.00019452,3]
[347549834,1735913451960,-500.0,0.00019452,3]
[347549836,1735913451969,-1322.65,0.00019452,3]
[347549838,1735913451978,-500.0,0.00019452,3]
[347549840,1735913451987,-500.0,0.00019452,3]
[347549842,1735913451996,-500.0,0.00019452,3]
[347549844,1735913452005,-500.0,0.00019452,2]
[347549846,1735913452014,-601.53,0.00019452,3]
[347549848,1735913452022,-644.42989875,0.00019452,3]
[347549850,1735913452033,-501.66918285,0.00019452,3]
[347549851,1735913452042,-1439.96,0.00019452,3]
[347549853,1735913452051,-2634.57,0.00019452,3]
[347549856,1735913452060,-500.0,0.00019452,3]
[347549858,1735913452069,-500.0,0.00019452,3]
[347549859,1735913452078,-500.0,0.00019452,3]
[347549862,1735913452088,-500.0,0.00019452,3]
[347549864,1735913452097,-2812.68,0.00019452,3]
[347549865,1735913452106,-500.0,0.00019452,3]
[347549868,1735913452116,-500.0,0.00019452,3]
[347549870,1735913452125,-500.0,0.00019452,3]
[347549872,1735913452134,-500.0,0.00019452,3]
[347549874,1735913452144,-1571.48,0.00019452,3]
[347549876,1735913452153,-500.0,0.00019452,3]
[347549877,1735913452162,-500.0,0.00019452,3]
[347549880,1735913452171,-500.0,0.00019452,3]
[347549882,1735913452180,-502.45775699,0.00019452,3]
[347549884,1735913452189,-563.22,0.00019452,3]
[347549886,1735913452198,-500.0,0.00019452,3]
[347549888,1735913452207,-500.0,0.00019452,3]
[347549890,1735913452218,-344.382535,0.00019452,2]
[347549892,1735913452227,-344.382535,0.00019452,2]
[347549894,1735913452237,-1181.26,0.00019452,3]
[347549896,1735913452246,-344.382535,0.00019452,2]
[347549898,1735913452255,-1313.2,0.00019452,3]
[347549900,1735913452264,-344.382535,0.00019452,2]
[347549902,1735913452273,-500.0,0.00019452,3]
[347549904,1735913452283,-344.382535,0.00019452,2]
[347549906,1735913452292,-344.382535,0.00019452,2]
[347549908,1735913452302,-509.62451974,0.00019452,3]
[347549910,1735913452315,-500.0,0.00019452,3]
[347549912,1735913452324,-500.0,0.00019452,3]
[347549914,1735913452333,-500.0,0.00019452,3]
[347549916,1735913452342,-500.0,0.00019452,3]
[347549917,1735913452352,-807.71,0.00019452,3]
[347549919,1735913452361,-1482.98,0.00019452,3]
[347549921,1735913452371,-500.0,0.00019452,3]
[347549923,1735913452380,-500.0,0.00019452,3]
[347549925,1735913452390,-500.0,0.00019452,3]
[347549927,1735913452400,-500.0,0.00019452,3]
[347549929,1735913452409,-500.0,0.00019452,3]
[347549931,1735913452419,-500.0,0.00019452,3]
[347549933,1735913452428,-1155.63,0.00019452,3]
[347549935,1735913452437,-500.0,0.00019452,3]
[347549937,1735913452447,-500.0,0.00019452,3]
[347549939,1735913452456,-151.0,0.00019452,2]
[347549941,1735913452465,-151.0,0.00019452,2]
[347549943,1735913452475,-151.0,0.00019452,2]
[347549945,1735913452484,-1491.74,0.00019452,3]
[347549947,1735913452493,-500.0,0.00019452,3]
[347549949,1735913452503,-500.0,0.00019452,3]
[347549951,1735913452512,-500.0,0.00019452,3]
[347549953,1735913452521,-500.0,0.00019473,2]
[347549955,1735913452532,-515.47773093,0.00019473,2]
[347549957,1735913452541,-161.12720917,0.00019473,2]
[347549959,1735913452551,-500.0,0.00019473,2]
[347549967,1735913452679,-500.0,0.00019473,2]
[347549968,1735913452690,-500.0,0.00019473,2]
[347549969,1735913452700,-500.70745546,0.00019473,2]
[347549970,1735913452709,-166.20916882,0.00019473,2]
[347549971,1735913452718,-566.90739118,0.00019473,2]
[347549972,1735913452727,-500.88027425,0.00019473,2]
[347549973,1735913452737,-500.0,0.00019473,2]
[347549974,1735913452747,-563.33182312,0.00019473,2]
[347549975,1735913452757,-151.0,0.00019474,2]
[347549976,1735913452766,-9092.51811874,0.000195,3]
[347549984,1735913621474,10000.0,0.00014001,2]
[347549985,1735913623374,253.689235,0.00013973,2]
[347549986,1735913636328,10000.0,0.00014001,2]
[347549999,1735913999757,2209.0,0.00025,120]
[347550003,1735914137152,1798.0,0.00025,120]
[347550004,1735914209380,227.78751445,0.00025,120]
[347550006,1735914295687,-554.68204471,0.00014842,2]
[347550007,1735914295711,-800.0,0.00014992,2]
[347550008,1735914295735,-800.0,0.00016362,2]
[347550009,1735914295759,-800.0,0.00017732,2]
[347550010,1735914295785,-45.31795529,0.00018476,2]
[347550016,1735914411159,-374.4118908,0.00014842,2]
[347550022,1735914510337,275.51963196,0.0001,2]
[347550044,1735914632522,-600.0,0.00014992,2]
[347550045,1735914632532,-600.0,0.00016362,2]
[347550046,1735914632542,-600.0,0.00017732,2]
[347550047,1735914632552,-130.68347471,0.00018476,2]
[347550048,1735914632561,-385.27,0.0001852,2]
[347550049,1735914632571,-352.7299908,0.00018741,2]
[347550051,1735914632580,-352.7299908,0.00018741,2]
[347550053,1735914632590,-352.7299908,0.00018741,2]
[347550055,1735914632599,-352.7299908,0.000188,2]
[347550057,1735914632609,-352.7299908,0.000188,2]
[347550059,1735914632619,-600.0,0.00018828,2]
[347550061,1735914632632,-600.0,0.00018937,2]
[347550063,1735914632642,-201.2645565,0.00019078,2]
[347550065,1735914632651,-1274.667268,0.00019078,2]
[347550067,1735914632661,-300.0,0.00019172,2]
[347550069,1735914632672,-500.0,0.00019173,2]
[347550071,1735914632681,-500.0,0.00019173,2]
[347550073,1735914632690,-142.02627002,0.00019173,2]
[347550076,1735914632710,-386.62004798,0.00019173,2]
[347550078,1735914632720,-268.59,0.00019177,5]
[347550080,1735914632730,-357.12597502,0.00019178,2]
[347550082,1735914632742,-142.87402498,0.00019178,2]
[347550084,1735914632754,-318.14097502,0.00019178,2]
[347550127,1735914638387,-181.85902498,0.00019178,2]
[347550129,1735914638398,-503.14828371,0.00019178,2]
[347550131,1735914638408,-500.0,0.00019178,2]
[347550133,1735914638418,-501.0,0.00019178,2]
[347550135,1735914638427,-500.0,0.00019178,2]
[347550137,1735914638437,-500.0,0.00019178,2]
[347550139,1735914638447,-500.0,0.00019178,2]
[347550141,1735914638457,-500.0,0.00019178,2]
[347550143,1735914638467,-500.0,0.00019178,2]
[347550144,1735914638478,-500.0,0.00019178,2]
[347550145,1735914638487,-566.65,0.00019178,2]
[347550146,1735914638497,-500.0,0.00019178,2]
[347550147,1735914638506,-502.77429682,0.00019178,2]
[347550148,1735914638517,-500.0,0.00019178,2]
[347550149,1735914638526,-500.0,0.00019178,2]
[347550150,1735914638536,-500.0,0.00019178,2]
[347550151,1735914638545,-500.0,0.00019178,2]
[347550152,1735914638555,-642.34061488,0.00019178,2]
[347550153,1735914638565,-500.0,0.00019178,2]
[347550154,1735914638574,-500.0,0.00019178,2]
[347550155,1735914638584,-500.0,0.00019178,2]
[347550156,1735914638594,-500.0,0.00019178,2]
[347550157,1735914638603,-500.0,0.00019178,2]
[347550158,1735914638613,-502.71705809,0.00019178,2]
[347550159,1735914638622,-500.0,0.00019178,2]
[347550160,1735914638634,-509.82,0.00019178,2]
[347550161,1735914638643,-500.0,0.00019178,2]
[347550162,1735914638653,-500.0,0.00019178,2]
[347550163,1735914638663,-500.0,0.00019178,2]
[347550164,1735914638672,-501.03313542,0.00019178,2]
[347550165,1735914638681,-500.0,0.00019178,2]
[347550166,1735914638691,-500.0,0.00019178,2]
[347550167,1735914638700,-500.0,0.00019178,2]
[347550168,1735914638709,-500.0,0.00019178,2]
[347550169,1735914638719,-500.0,0.00019178,2]
[347550170,1735914638731,-500.0,0.00019178,2]
[347550171,1735914638742,-500.23903858,0.00019178,2]
[347550172,1735914638752,-480.34737165,0.00019178,2]
[347550173,1735914638761,-500.0,0.00019178,2]
[347550174,1735914638772,-500.0,0.00019178,2]
[347550175,1735914638781,-500.0,0.00019178,2]
[347550176,1735914638791,-500.0,0.00019178,2]
[347550177,1735914638801,-500.0,0.00019178,2]
[347550178,1735914638810,-500.0,0.00019178,2]
[347550179,1735914638819,-500.0,0.00019178,2]
[347550180,1735914638829,-500.0,0.00019178,2]
[347550181,1735914638838,-500.0,0.00019178,2]
[347550182,1735914638847,-500.0,0.00019178,2]
[347550183,1735914638856,-500.0,0.00019178,2]
[347550184,1735914638866,-500.0,0.00019178,2]
[347550185,1735914638877,-500.0,0.00019178,2]
[347550186,1735914638887,-500.0,0.00019178,2]
[347550187,1735914638896,-268.78096561,0.00019178,2]
[347550188,1735914638905,-500.0,0.00019178,2]
[347550189,1735914638915,-500.0,0.00019178,2]
[347550190,1735914638924,-500.0,0.00019178,2]
[347550191,1735914638934,-500.0,0.00019178,2]
[347550192,1735914638943,-500.0,0.00019178,2]
[347550193,1735914638954,-500.0,0.00019178,2]
[347550194,1735914638963,-500.0,0.00019178,2]
[347550195,1735914638973,-500.0,0.00019178,2]
[347550196,1735914638983,-500.0,0.00019178,2]
[347550197,1735914638992,-500.0,0.00019178,2]
[347550198,1735914639002,-500.0,0.00019178,2]
[347550199,1735914639011,-500.0,0.00019178,2]
[347550200,1735914639021,-500.0,0.00019178,2]
[347550201,1735914639031,-500.0,0.00019178,2]
[347550202,1735914639041,-500.0,0.00019178,2]
[347550203,1735914639050,-500.0,0.00019178,2]
[347550204,1735914639060,-500.0,0.00019178,2]
[347550205,1735914639070,-500.0,0.00019178,2]
[347550206,1735914639081,-500.0,0.00019178,2]
[347550207,1735914639092,-502.16244357,0.00019178,2]
[347550208,1735914639101,-500.0,0.00019178,2]
[347550209,1735914639111,-500.0,0.00019178,2]
[347550210,1735914639120,-500.0,0.00019178,2]
[347550211,1735914639132,-500.0,0.00019178,2]
[347550212,1735914639141,-621.05839653,0.00019178,2]
[347550213,1735914639151,-500.0,0.00019178,2]
[347550214,1735914639160,-500.0,0.00019178,2]
[347550215,1735914639170,-500.0,0.00019178,2]
[347550216,1735914639179,-500.0,0.00019178,2]
[347550217,1735914639189,-500.0,0.00019178,2]
[347550218,1735914639198,-500.0,0.00019178,2]
[347550219,1735914639207,-505.52,0.00019178,2]
[347550220,1735914639216,-500.0,0.00019178,2]
[347550221,1735914639226,-500.0,0.00019178,2]
[347550222,1735914639236,-500.0,0.00019178,2]
[347550223,1735914639245,-1576.01,0.00019178,2]
[347550224,1735914639255,-500.0,0.00019178,2]
[347550225,1735914639264,-500.0,0.00019178,2]
[347550226,1735914639274,-500.0,0.00019178,2]
[347550227,1735914639284,-500.0,0.00019178,2]
[347550228,1735914639294,-500.0,0.00019178,2]
[347550229,1735914639304,-500.0,0.00019178,2]
[347550230,1735914639314,-500.0,0.00019178,2]
[347550231,1735914639466,-500.0,0.00019178,2]
[347550232,1735914639476,-500.0,0.00019178,2]
[347550233,1735914639485,-500.0,0.00019178,2]
[347550234,1735914639495,-500.0,0.00019178,2]
[347550235,1735914639505,-500.0,0.00019178,2]
[347550236,1735914639515,-500.0,0.00019178,2]
[347550237,1735914639524,-500.0,0.00019178,2]
[347550238,1735914639534,-539.93542246,0.00019178,2]
[347550239,1735914639544,-500.0,0.00019178,2]
[347550240,1735914639553,-500.0,0.00019178,2]
[347550241,1735914639563,-500.0,0.00019178,2]
[347550242,1735914639572,-813.02,0.00019178,2]
[347550243,1735914639582,-500.0,0.00019178,2]
[347550244,1735914639591,-500.0,0.00019178,2]
[347550245,1735914639601,-504.49525942,0.00019178,2]
[347550246,1735914639610,-500.0,0.00019178,2]
[347550247,1735914639620,-500.0,0.00019178,2]
[347550248,1735914639631,-500.0,0.00019178,2]
[347550249,1735914639640,-500.0,0.00019178,2]
[347550250,1735914639649,-500.0,0.00019178,2]
[347550251,1735914639659,-500.0,0.00019178,2]
[347550252,1735914639668,-500.0,0.00019178,2]
[347550253,1735914639677,-500.0,0.00019178,2]
[347550254,1735914639686,-500.0,0.00019178,2]
[347550255,1735914639695,-500.0,0.00019178,2]
[347550256,1735914639705,-500.0,0.00019178,2]
[347550257,1735914639714,-500.0,0.00019178,2]
[347550258,1735914639723,-618.42475071,0.00019178,2]
[347550259,1735914639735,-697.98,0.00019178,2]
[347550260,1735914639744,-500.0,0.00019178,2]
[347550261,1735914639753,-500.0,0.00019178,2]
[347550262,1735914639763,-500.0,0.00019178,2]